fUST/lending_fUST_20250227
["ID","MTS","AMOUNT","RATE_DAILY","PERIOD"]
[354684503,1740615046439,-500.0,0.00046575,120]
[354684504,1740615046449,-898.68,0.00046575,120]
[354684505,1740615046458,-898.68,0.00046575,120]
[354684506,1740615046467,-898.68,0.00046575,120]
[354684507,1740615046477,-898.68,0.00046575,120]
[354684508,1740615046488,-500.72924714,0.00046575,120]
[354684509,1740615046502,-898.68,0.00046575,120]
[354684510,1740615046511,-898.68,0.00046575,120]
[354684511,1740615046522,-898.68,0.00046575,120]
[354684512,1740615046533,-898.68,0.00046575,120]
[354684513,1740615046543,-898.68,0.00046575,120]
[354684514,1740615046552,-898.68,0.00046575,120]
[354684515,1740615046562,-898.68,0.00046575,120]
[354684516,1740615046574,-500.0,0.00046575,120]
[354684517,1740615046585,-898.68,0.00046575,120]
[354684518,1740615046596,-898.68,0.00046575,120]
[354684519,1740615046605,-898.68,0.00046575,120]
[354684520,1740615046615,-898.68,0.00046575,120]
[354684521,1740615046625,-898.68,0.00046575,120]
[354684522,1740615046634,-898.68,0.00046575,120]
[354684523,1740615046644,-898.69776677,0.00046575,120]
[354684524,1740615046653,-500.0,0.00046575,120]
[354684525,1740615046663,-500.0,0.00046575,120]
[354684526,1740615046673,-500.0,0.00046575,120]
[354684527,1740615046682,-500.0,0.00046575,120]
[354684528,1740615046692,-506.93,0.00046575,120]
[354684529,1740615046701,-814.87,0.00046575,120]
[354684530,1740615046710,-500.0,0.00046575,120]
[354684531,1740615046720,-500.0,0.00046575,120]
[354684532,1740615046730,-500.0,0.00046575,120]
[354684533,1740615046739,-500.0,0.00046575,120]
[354684534,1740615046748,-34014.5,0.00046575,6]
[354684535,1740615046757,-500.0,0.00046575,120]
[354684536,1740615046766,-822.12,0.00046575,120]
[354684537,1740615046775,-500.0,0.00046575,120]
[354684538,1740615046784,-500.0,0.00046575,120]
[354684539,1740615046794,-500.0,0.00046575,120]
[354684540,1740615046803,-500.0,0.00046575,120]
[354684541,1740615046812,-500.0,0.00046575,120]
[354684542,1740615046822,-500.0,0.00046575,120]
[354684543,1740615046831,-500.0,0.00046575,120]
[354684544,1740615046840,-500.0,0.00046575,120]
[354684545,1740615046850,-500.0,0.00046575,120]
[354684546,1740615046858,-500.0,0.00046575,120]
[354684547,1740615046868,-500.0,0.00046575,120]
[354684548,1740615046877,-1454.69,0.00046575,120]
[354684549,1740615046886,-231.12730587,0.00046575,120]
[354684550,1740615046896,-500.0,0.00046575,120]
[354684551,1740615046905,-500.0,0.00046575,120]
[354684552,1740615046915,-500.0,0.00046575,120]
[354684553,1740615046924,-500.0,0.00046575,120]
[354684554,1740615046934,-500.0,0.00046575,120]
[354684555,1740615046944,-500.0,0.00046575,120]
[354684556,1740615046953,-500.0,0.00046575,120]
[354684557,1740615046962,-500.0,0.00046575,120]
[354684558,1740615046971,-500.0,0.00046575,120]
[354684559,1740615046981,-500.0,0.00046575,120]
[354684560,1740615046990,-500.0,0.00046575,120]
[354684561,1740615047000,-503.38610217,0.00046575,120]
[354684562,1740615047010,-500.0,0.00046575,120]
[354684563,1740615047019,-500.0,0.00046575,120]
[354684564,1740615047028,-504.8694788,0.00046575,120]
[354684565,1740615047038,-500.0,0.00046575,120]
[354684566,1740615047047,-500.0,0.00046575,120]
[354684567,1740615047056,-2433.83,0.00046575,120]
[354684568,1740615047066,-500.0,0.00046575,120]
[354684569,1740615047075,-639.5,0.00046575,120]
[354684570,1740615047085,-500.0,0.00046575,120]
[354684571,1740615047094,-500.0,0.00046575,120]
[354684572,1740615047103,-500.0,0.00046575,120]
[354684573,1740615047113,-10530.96,0.00046575,120]
[354684574,1740615047123,-500.0,0.00046575,120]
[354684575,1740615047132,-500.0,0.00046575,120]
[354684576,1740615047141,-500.0,0.00046575,120]
[354684577,1740615047150,-500.0,0.00046575,120]
[354684578,1740615047160,-500.0,0.00046575,120]
[354684579,1740615047169,-1828.48,0.00046575,120]
[354684580,1740615047178,-500.0,0.00046575,120]
[354684581,1740615047187,-3667.52,0.00046575,120]
[354684582,1740615047197,-500.0,0.00046575,120]
[354684583,1740615047207,-500.0,0.00046575,120]
[354684584,1740615047216,-900.97,0.00046575,120]
[354684585,1740615047226,-500.0,0.00046575,120]
[354684586,1740615047237,-500.0,0.00046575,120]
[354684587,1740615047246,-500.0,0.00046575,120]
[354684588,1740615047257,-1000.0,0.00046599,120]
[354684589,1740615047266,-6327.02,0.000466,30]
[354684590,1740615047275,-7352.96,0.000466,30]
[354684591,1740615047285,-151.0,0.000466,23]
[354684592,1740615047294,-151.0,0.000466,25]
[354684593,1740615047303,-151.0,0.000466,27]
[354684594,1740615047313,-151.0,0.000466,25]
[354684595,1740615047323,-151.0,0.000466,26]
[354684596,1740615047332,-1000.0,0.00046626,120]
[354684597,1740615047341,-1000.0,0.00046653,120]
[354684598,1740615047350,-1000.0,0.00046681,120]
[354684599,1740615047359,-1000.0,0.00046708,120]
[354684600,1740615047369,-1000.0,0.00046736,120]
[354684601,1740615047378,-1000.0,0.00046763,120]
[354684602,1740615047387,-1000.0,0.0004679,120]
[354684603,1740615047396,-1000.0,0.000468,60]
[354684604,1740615047406,-1000.0,0.000468,90]
[354684605,1740615047415,-1000.0,0.000468,120]
[354684606,1740615047425,-1000.0,0.00046818,120]
[354684607,1740615047434,-885.67059004,0.00046845,120]
[354684608,1740615047443,-500.0,0.00046849,120]
[354684609,1740615047452,-500.0,0.00046849,120]
[354684610,1740615047461,-500.0,0.00046849,120]
[354684611,1740615047470,-500.0,0.00046849,120]
[354684612,1740615047480,-500.0,0.00046849,120]
[354684613,1740615047493,-500.0,0.00046849,120]
[354684614,1740615047503,-500.0,0.00046849,120]
[354684615,1740615047512,-500.0,0.00046849,120]
[354684616,1740615047522,-354.71595237,0.00046849,120]
[354684617,1740615047531,-500.0,0.00046849,120]
[354684618,1740615047540,-500.0,0.00046849,120]
[354684619,1740615047549,-500.0,0.00046849,120]
[354684620,1740615047558,-500.0,0.00046849,120]
[354684621,1740615047569,-500.0,0.00046849,120]
[354684622,1740615047579,-500.0,0.00046849,120]
[354684623,1740615047588,-500.0,0.00046849,120]
[354684624,1740615047598,-500.0,0.00046849,120]
[354684625,1740615047608,-220.68152387,0.00046849,120]
[354684626,1740615047617,-556.53,0.00046849,120]
[354684627,1740615047627,-500.0,0.00046849,120]
[354684628,1740615047636,-500.0,0.00046849,120]
[354684629,1740615047646,-500.0,0.00046849,120]
[354684630,1740615047655,-500.0,0.00046849,120]
[354684631,1740615047664,-500.0,0.00046849,120]
[354684632,1740615047673,-500.0,0.00046849,120]
[354684633,1740615047683,-500.0,0.00046849,120]
[354684634,1740615047691,-684.48,0.00046849,120]
[354684635,1740615047701,-500.0,0.00046849,120]
[354684636,1740615047837,-696.96,0.00046849,120]
[354684637,1740615047847,-500.0,0.00046849,120]
[354684638,1740615047857,-500.0,0.00046849,120]
[354684639,1740615047867,-500.0,0.00046849,120]
[354684640,1740615047876,-518.99685636,0.00046849,120]
[354684641,1740615047885,-507.19723856,0.00046849,120]
[354684642,1740615047894,-500.0,0.00046849,7]
[354684643,1740615047903,-597.66,0.00046849,120]
[354684644,1740615047912,-500.0,0.00046849,120]
[354684645,1740615047921,-579.5,0.00046849,120]
[354684646,1740615047930,-560.99881457,0.00046849,120]
[354684647,1740615047939,-308.51038791,0.00046849,120]
[354684648,1740615047948,-500.0,0.00046849,120]
[354684649,1740615047957,-500.0,0.00046849,120]
[354684650,1740615047966,-1194.19,0.00046849,120]
[354684651,1740615047975,-500.0,0.00046849,120]
[354684652,1740615047984,-500.0,0.00046849,120]
[354684653,1740615047994,-500.0,0.00046849,120]
[354684654,1740615048003,-522.55,0.00046849,120]
[354684655,1740615048013,-526.88,0.00046849,120]
[354684656,1740615048022,-500.0,0.00046849,120]
[354684657,1740615048031,-506.45072332,0.00046849,120]
[354684658,1740615048040,-500.0,0.00046849,120]
[354684659,1740615048049,-500.0,0.00046849,120]
[354684660,1740615048058,-500.0,0.00046849,120]
[354684661,1740615048067,-500.0,0.00046849,120]
[354684662,1740615048076,-500.0,0.00046849,120]
[354684663,1740615048085,-500.0,0.00046849,120]
[354684664,1740615048094,-500.0,0.00046849,120]
[354684665,1740615048102,-500.0,0.00046849,120]
[354684666,1740615048111,-500.0,0.00046849,120]
[354684667,1740615048120,-500.0,0.00046849,120]
[354684668,1740615048130,-294.81283306,0.00046849,120]
[354684669,1740615048138,-500.0,0.00046849,120]
[354684670,1740615048148,-500.0,0.00046849,120]
[354684671,1740615048157,-500.0,0.00046849,120]
[354684672,1740615048166,-500.0,0.00046849,120]
[354684673,1740615048176,-500.0,0.00046849,120]
[354684674,1740615048185,-500.0,0.00046849,120]
[354684675,1740615048195,-500.0,0.00046849,120]
[354684676,1740615048204,-500.0,0.00046849,120]
[354684677,1740615048213,-500.0,0.00046849,120]
[354684678,1740615048222,-535.91,0.00046849,120]
[354684679,1740615048231,-500.0,0.00046849,120]
[354684680,1740615048241,-500.0,0.00046849,120]
[354684681,1740615048250,-500.0,0.00046849,120]
[354684682,1740615048259,-500.0,0.00046849,120]
[354684683,1740615048269,-500.0,0.00046849,14]
[354684684,1740615048278,-1117.48,0.00046849,120]
[354684685,1740615048287,-500.0,0.00046849,120]
[354684686,1740615048297,-607.66,0.00046849,120]
[354684687,1740615048306,-500.0,0.00046849,120]
[354684688,1740615048316,-500.0,0.00046849,120]
[354684689,1740615048325,-500.0,0.00046849,120]
[354684690,1740615048334,-500.0,0.00046849,120]
[354684691,1740615048343,-500.0,0.00046849,120]
[354684692,1740615048353,-1000.0,0.00046849,120]
[354684693,1740615048363,-500.0,0.00046849,120]
[354684694,1740615048373,-500.0,0.00046849,120]
[354684695,1740615048394,-500.0,0.00046849,120]
[354684696,1740615048407,-500.0,0.00046849,30]
[354684697,1740615048418,-500.0,0.00046849,120]
[354684698,1740615048430,-500.0,0.00046849,120]
[354684699,1740615048444,-502.28101429,0.00046849,120]
[354684700,1740615048457,-500.0,0.00046849,120]
[354684701,1740615048467,-500.0,0.00046849,120]
[354684702,1740615048476,-500.0,0.00046849,120]
[354684703,1740615048488,-500.0,0.00046849,120]
[354684704,1740615048501,-500.0,0.00046849,120]
[354684705,1740615048511,-500.0,0.00046849,120]
[354684706,1740615048521,-500.0,0.00046849,120]
[354684707,1740615048530,-1285.36,0.00046849,120]
[354684708,1740615048541,-500.0,0.00046849,120]
[354684709,1740615048550,-500.0,0.00046849,120]
[354684710,1740615048560,-515.82,0.00046849,120]
[354684711,1740615048570,-500.0,0.00046849,120]
[354684712,1740615048579,-459.8096676,0.00046849,120]
[354684713,1740615048588,-500.0,0.00046849,120]
[354684714,1740615048597,-501.8535876,0.00046849,120]
[354684715,1740615048606,-500.0,0.00046849,120]
[354684716,1740615048615,-500.0,0.00046849,120]
[354684717,1740615048625,-500.0,0.00046849,120]
[354684718,1740615048634,-564.89,0.00046849,120]
[354684719,1740615048644,-500.0,0.00046849,120]
[354684720,1740615048654,-500.0,0.00046849,120]
[354684721,1740615048664,-500.0,0.00046849,120]
[354684722,1740615048673,-500.0,0.00046849,120]
[354684723,1740615048683,-500.0,0.00046849,120]
[354684724,1740615048692,-580.62,0.00046849,120]
[354684725,1740615048701,-501.17098001,0.00046849,120]
[354684726,1740615048711,-500.0,0.00046849,120]
[354684727,1740615048720,-500.0,0.00046849,120]
[354684728,1740615048730,-542.5,0.00046849,120]
[354684729,1740615048740,-698.53,0.00046849,120]
[354684730,1740615048749,-625.66,0.00046849,120]
[354684731,1740615048759,-500.0,0.00046849,120]
[354684732,1740615048768,-500.0,0.00046849,120]
[354684733,1740615048777,-500.0,0.00046849,120]
[354684734,1740615048786,-500.0,0.00046849,120]
[354684735,1740615048801,-500.0,0.00046849,120]
[354684736,1740615048811,-500.0,0.00046849,120]
[354684737,1740615048820,-500.0,0.00046849,120]
[354684738,1740615048830,-2405.94,0.00046849,120]
[354684739,1740615048838,-500.0,0.00046849,120]
[354684740,1740615048848,-500.0,0.00046849,120]
[354684741,1740615048857,-500.0,0.00046849,120]
[354684742,1740615048866,-500.0,0.00046849,120]
[354684743,1740615048875,-500.0,0.00046849,120]
[354684744,1740615048885,-773.54,0.00046849,120]
[354684745,1740615048895,-352.50764116,0.00046849,120]
[354684746,1740615048904,-500.0,0.00046849,120]
[354684747,1740615048914,-500.0,0.00046849,120]
[354684748,1740615048923,-500.0,0.00046849,120]
[354684749,1740615048932,-500.0,0.00046849,120]
[354684750,1740615048941,-694.73,0.00046849,120]
[354684751,1740615048951,-500.0,0.00046849,120]
[354684752,1740615048960,-500.0,0.00046849,120]
[354684753,1740615048970,-500.0,0.00046849,120]
[354684754,1740615048980,-500.0,0.00046849,120]
[354684755,1740615048990,-500.0,0.00046849,120]
[354684756,1740615048999,-414.37904405,0.00046849,120]
[354684757,1740615049009,-500.0,0.00046849,120]
[354684758,1740615049018,-500.0,0.00046849,120]
[354684759,1740615049028,-500.0,0.00046849,120]
[354684760,1740615049037,-500.0,0.00046849,120]
[354684761,1740615049047,-500.0,0.00046849,120]
[354684762,1740615049056,-500.0,0.00046849,120]
[354684763,1740615049066,-500.0,0.00046849,120]
[354684764,1740615049075,-500.0,0.00046849,120]
[354684765,1740615049085,-1595.74,0.00046849,120]
[354684766,1740615049094,-504.51,0.00046849,120]
[354684767,1740615049104,-500.0,0.00046849,120]
[354684768,1740615049113,-500.0,0.00046849,120]
[354684769,1740615049122,-513.85,0.00046849,120]
[354684770,1740615049132,-2465.69,0.00046849,120]
[354684771,1740615049141,-500.0,0.00046849,120]
[354684772,1740615049151,-500.0,0.00046849,120]
[354684773,1740615049161,-500.0,0.00046849,120]
[354684774,1740615049170,-500.0,0.00046849,120]
[354684775,1740615049180,-703.05,0.00046849,120]
[354684776,1740615049190,-1275.71,0.00046849,120]
[354684777,1740615049200,-500.0,0.00046849,120]
[354684778,1740615049210,-500.0,0.00046849,120]
[354684779,1740615049221,-648.48,0.00046849,120]
[354684780,1740615049231,-500.0,0.00046849,120]
[354684781,1740615049240,-500.0,0.00046849,120]
[354684782,1740615049250,-500.0,0.00046849,120]
[354684783,1740615049259,-528.11587061,0.00046849,120]
[354684784,1740615049268,-599.93,0.00046849,120]
[354684785,1740615049278,-1982.96,0.00046849,120]
[354684786,1740615049287,-500.0,0.00046849,120]
[354684787,1740615049297,-200.0,0.00046849,7]
[354684788,1740615049306,-2194.79,0.00046849,120]
[354684789,1740615049316,-500.0,0.00046849,120]
[354684790,1740615049326,-500.0,0.00046849,120]
[354684791,1740615049335,-500.0,0.00046849,120]
[354684792,1740615049344,-794.85,0.00046849,120]
[354684793,1740615049354,-500.0,0.00046849,120]
[354684794,1740615049364,-500.0,0.00046849,120]
[354684795,1740615049375,-500.0,0.00046849,120]
[354684796,1740615049385,-500.0,0.00046849,120]
[354684797,1740615049394,-1000.0,0.00046849,5]
[354684798,1740615049404,-500.0,0.00046849,120]
[354684799,1740615049413,-603.06,0.00046849,120]
[354684800,1740615049422,-500.0,0.00046849,120]
[354684801,1740615049431,-500.0,0.00046849,120]
[354684802,1740615049440,-500.0,0.00046849,120]
[354684803,1740615049450,-1093.74,0.00046849,120]
[354684804,1740615049459,-506.1319701,0.00046849,120]
[354684805,1740615049468,-500.0,0.00046849,120]
[354684806,1740615049478,-500.0,0.00046849,120]
[354684807,1740615049488,-500.0,0.00046849,120]
[354684808,1740615049501,-500.0,0.00046849,120]
[354684809,1740615049511,-500.0,0.00046849,120]
[354684810,1740615049519,-500.0,0.00046849,120]
[354684811,1740615049529,-500.0,0.00046849,120]
[354684812,1740615049541,-500.0,0.00046849,120]
[354684813,1740615049550,-500.0,0.00046849,120]
[354684814,1740615049559,-500.0,0.00046849,120]
[354684815,1740615049569,-500.0,0.00046849,120]
[354684816,1740615049578,-500.72914107,0.00046849,120]
[354684817,1740615049587,-500.0,0.00046849,120]
[354684818,1740615049596,-500.0,0.00046849,120]
[354684819,1740615049605,-500.0,0.00046849,120]
[354684820,1740615049614,-223.35307809,0.00046849,120]
[354684821,1740615049623,-500.0,0.00046849,120]
[354684822,1740615049632,-500.0,0.00046849,120]
[354684823,1740615049642,-500.0,0.00046849,120]
[354684824,1740615049651,-2272.71,0.00046849,120]
[354684825,1740615049660,-501.96,0.00046849,120]
[354684826,1740615049669,-500.0,0.00046849,30]
[354684827,1740615049679,-500.0,0.00046849,120]
[354684828,1740615049688,-500.0,0.00046849,120]
[354684829,1740615049698,-500.0,0.00046849,120]
[354684830,1740615049707,-1481.29,0.00046849,120]
[354684831,1740615049716,-500.0,0.00046849,120]
[354684832,1740615049726,-500.0,0.00046849,120]
[354684833,1740615049736,-505.6646325,0.00046849,120]
[354684834,1740615049746,-540.64,0.00046849,120]
[354684835,1740615049755,-500.0,0.00046849,120]
[354684836,1740615049764,-549.17,0.00046849,120]
[354684837,1740615049773,-504.9395046,0.00046849,120]
[354684838,1740615049782,-500.0,0.00046849,120]
[354684839,1740615049791,-580.45,0.00046849,120]
[354684840,1740615049801,-500.0,0.00046849,120]
[354684841,1740615049810,-1163.16,0.00046849,120]
[354684842,1740615049819,-599.79,0.00046849,120]
[354684843,1740615049829,-1342.65,0.00046849,120]
[354684844,1740615049838,-500.0,0.00046849,120]
[354684845,1740615049847,-500.0,0.00046849,120]
[354684846,1740615049857,-1904.83,0.00046849,120]
[354684847,1740615049866,-500.0,0.00046849,120]
[354684848,1740615049875,-500.0,0.00046849,120]
[354684849,1740615049884,-500.0,0.00046849,120]
[354684850,1740615049893,-500.0,0.00046849,120]
[354684851,1740615049902,-500.0,0.00046849,120]
[354684852,1740615049911,-1164.01,0.00046849,120]
[354684853,1740615049920,-500.0,0.00046849,120]
[354684854,1740615049929,-500.0,0.00046849,120]
[354684855,1740615049938,-500.0,0.00046849,120]
[354684856,1740615049947,-370.44442927,0.00046849,120]
[354684857,1740615049956,-750.32,0.00046849,120]
[354684858,1740615049966,-500.0,0.00046849,120]
[354684859,1740615049975,-500.0,0.00046849,120]
[354684860,1740615049983,-500.0,0.00046849,120]
[354684861,1740615049992,-500.0,0.00046849,120]
[354684862,1740615050001,-764.22,0.00046849,120]
[354684863,1740615050010,-1234.58,0.00046849,120]
[354684864,1740615050019,-500.0,0.00046849,120]
[354684865,1740615050028,-1208.64,0.00046849,120]
[354684866,1740615050037,-500.0,0.00046849,120]
[354684867,1740615050046,-500.0,0.00046849,120]
[354684868,1740615050055,-500.0,0.00046849,120]
[354684869,1740615050064,-1071.49,0.00046849,120]
[354684870,1740615050073,-500.0,0.00046849,120]
[354684871,1740615050082,-745.52,0.00046849,120]
[354684872,1740615050091,-500.0,0.00046849,120]
[354684873,1740615050100,-640.68,0.00046849,120]
[354684874,1740615050109,-500.0,0.00046849,30]
[354684875,1740615050119,-500.0,0.00046849,120]
[354684876,1740615050128,-500.0,0.00046849,120]
[354684877,1740615050137,-502.48416692,0.00046849,120]
[354684878,1740615050147,-1180.99,0.00046849,120]
[354684879,1740615050157,-500.0,0.00046849,120]
[354684880,1740615050167,-500.0,0.00046849,120]
[354684881,1740615050176,-500.0,0.00046849,120]
[354684882,1740615050185,-743.06,0.00046849,120]
[354684883,1740615050195,-660.31,0.00046849,120]
[354684884,1740615050203,-500.0,0.00046849,120]
[354684885,1740615050213,-595.38,0.00046849,120]
[354684886,1740615050222,-1017.5,0.00046849,120]
[354684887,1740615050231,-500.0,0.00046849,120]
[354684888,1740615050240,-500.0,0.00046849,120]
[354684889,1740615050249,-500.0,0.00046849,120]
[354684890,1740615050258,-578.39,0.00046849,120]
[354684891,1740615050267,-585.18702144,0.00046849,120]
[354684892,1740615050276,-500.0,0.00046849,120]
[354684893,1740615050285,-500.0,0.00046849,120]
[354684894,1740615050295,-500.0,0.00046849,120]
[354684895,1740615050303,-500.0,0.00046849,120]
[354684896,1740615050313,-689.24,0.00046849,120]
[354684897,1740615050323,-1041.27,0.00046849,120]
[354684898,1740615050332,-608.76,0.00046849,120]
[354684899,1740615050341,-1092.68,0.00046849,120]
[354684900,1740615050351,-2196.29,0.00046849,120]
[354684901,1740615050360,-500.0,0.00046849,120]
[354684902,1740615050369,-1648.24,0.00046849,120]
[354684903,1740615050378,-1321.26,0.00046849,120]
[354684904,1740615050503,-500.0,0.00046849,120]
[354684905,1740615050512,-500.0,0.00046849,120]
[354684906,1740615050523,-386.94907266,0.00046849,120]
[354684907,1740615050532,-859.46,0.00046849,120]
[354684908,1740615050542,-640.91,0.00046849,120]
[354684909,1740615050551,-500.0,0.00046849,120]
[354684910,1740615050560,-500.0,0.00046849,120]
[354684911,1740615050570,-500.0,0.00046849,120]
[354684912,1740615050579,-500.0,0.00046849,15]
[354684913,1740615050589,-500.0,0.00046849,120]
[354684914,1740615050598,-757.27,0.00046849,120]
[354684915,1740615050607,-1008.37,0.00046849,120]
[354684916,1740615050616,-500.0,0.00046849,120]
[354684917,1740615050626,-500.0,0.00046849,120]
[354684918,1740615050635,-500.0,0.00046849,120]
[354684919,1740615050645,-500.0,0.00046849,120]
[354684920,1740615050654,-500.0,0.00046849,120]
[354684921,1740615050663,-500.0,0.00046849,120]
[354684922,1740615050672,-500.0,0.00046849,120]
[354684923,1740615050681,-553.78,0.00046849,120]
[354684924,1740615050690,-500.0,0.00046849,120]
[354684925,1740615050699,-500.0,0.00046849,120]
[354684926,1740615050708,-500.0,0.00046849,120]
[354684927,1740615050717,-500.0,0.00046849,120]
[354684928,1740615050726,-500.0,0.00046849,120]
[354684929,1740615050735,-500.0,0.00046849,120]
[354684930,1740615050745,-885.86,0.00046849,120]
[354684931,1740615050753,-500.0,0.00046849,120]
[354684932,1740615050763,-500.0,0.00046849,120]
[354684933,1740615050772,-500.0,0.00046849,120]
[354684934,1740615050781,-501.19,0.00046849,120]
[354684935,1740615050790,-500.0,0.00046849,120]
[354684936,1740615050800,-500.0,0.00046849,120]
[354684937,1740615050809,-500.0,0.00046849,120]
[354684938,1740615050818,-500.0,0.00046849,120]
[354684939,1740615050827,-880.62,0.00046849,120]
[354684940,1740615050836,-654.0,0.00046849,120]
[354684941,1740615050845,-500.0,0.00046849,120]
[354684942,1740615050854,-500.0,0.00046849,120]
[354684943,1740615050863,-500.0,0.00046849,120]
[354684944,1740615050871,-492.70444578,0.00046849,120]
[354684945,1740615050880,-703.22,0.00046849,120]
[354684946,1740615050890,-693.98,0.00046849,120]
[354684947,1740615050900,-500.0,0.00046849,120]
[354684948,1740615050909,-2545.27,0.00046849,120]
[354684949,1740615050919,-500.0,0.00046849,120]
[354684950,1740615050928,-500.0,0.00046849,120]
[354684951,1740615050937,-2073.58,0.00046849,120]
[354684952,1740615050946,-1256.51,0.00046849,120]
[354684953,1740615050955,-992.42,0.00046849,120]
[354684954,1740615050964,-500.0,0.00046849,120]
[354684955,1740615050973,-7982.28837579,0.00046849,3]
[354684956,1740615050982,-500.0,0.00046849,120]
[354684957,1740615050991,-500.0,0.00046849,120]
[354684958,1740615051000,-500.0,0.00046849,120]
[354684959,1740615051010,-500.0,0.00046849,120]
[354684960,1740615051019,-613.14,0.00046849,120]
[354684961,1740615051028,-500.0,0.00046849,120]
[354684962,1740615051038,-500.0,0.00046849,120]
[354684963,1740615051047,-500.0,0.00046849,120]
[354684964,1740615051056,-915.01,0.00046849,120]
[354684965,1740615051065,-500.0,0.00046849,120]
[354684966,1740615051075,-500.0,0.00046849,120]
[354684967,1740615051084,-500.0,0.00046849,120]
[354684968,1740615051093,-500.0,0.00046849,120]
[354684969,1740615051102,-500.0,0.00046849,120]
[354684970,1740615051111,-220.56218032,0.00046849,120]
[354684971,1740615051121,-297.08668723,0.00046849,10]
[354684972,1740615051130,-500.0,0.00046849,45]
[354684973,1740615051139,-500.0,0.00046849,120]
[354684974,1740615051149,-4217.01,0.00046849,120]
[354684975,1740615051158,-500.0,0.00046849,120]
[354684976,1740615051168,-500.0,0.00046849,120]
[354684977,1740615051178,-250.0,0.00046849,120]
[354684978,1740615051187,-500.0,0.00046849,120]
[354684979,1740615051196,-500.0,0.00046849,120]
[354684980,1740615051206,-500.0,0.00046849,120]
[354684981,1740615051216,-1575.45,0.00046849,120]
[354684982,1740615051225,-500.0,0.00046849,120]
[354684983,1740615051235,-500.0,0.00046849,120]
[354684984,1740615051245,-500.0,0.00046849,120]
[354684985,1740615051254,-667.51,0.00046849,120]
[354684986,1740615051264,-500.0,0.00046849,120]
[354684987,1740615051273,-500.0,0.00046849,120]
[354684988,1740615051283,-27296.2,0.00046849,120]
[354684989,1740615051292,-507.7209542,0.00046849,120]
[354684990,1740615051301,-500.0,0.00046849,120]
[354684991,1740615051311,-500.0,0.00046849,120]
[354684992,1740615051320,-5502.66,0.00046849,120]
[354684993,1740615051329,-520.12453513,0.00046849,120]
[354684994,1740615051339,-500.0,0.00046849,120]
[354684995,1740615051348,-519.19,0.00046849,120]
[354684996,1740615051358,-500.0,0.00046849,120]
[354684997,1740615051367,-500.0,0.00046849,120]
[354684998,1740615051376,-3431.57,0.00046849,120]
[354684999,1740615051386,-511.9,0.00046849,120]
[354685000,1740615051395,-500.0,0.00046849,120]
[354685001,1740615051404,-500.0,0.00046849,120]
[354685002,1740615051413,-500.0,0.00046849,120]